fUST/lending_fUST_20250927
["ID","MTS","AMOUNT","RATE_DAILY","PERIOD"]
[388041595,1758984640072,-151.0,0.00033,11]
[388041596,1758984640082,-167.389996,0.00033,7]
[388041601,1758984640281,-151.0,0.00033,7]
[388041602,1758984640292,-167.389996,0.00033,7]
[388041603,1758984640302,-151.0,0.00033,7]
[388041604,1758984640311,-167.389996,0.00033,7]
[388041605,1758984640320,-167.389996,0.00033,7]
[388041606,1758984640329,-151.0,0.00033,7]
[388041607,1758984640339,-151.0,0.00033,7]
[388041608,1758984640348,-151.0,0.00033,7]
[388041609,1758984640358,-151.0,0.00033,7]
[388041610,1758984640367,-151.0,0.00033,7]
[388041612,1758984640377,-151.0,0.00033,7]
[388041614,1758984640387,-151.0,0.00033,7]
[388041616,1758984640396,-151.0,0.00033,7]
[388041617,1758984640406,-151.0,0.00033,7]
[388041618,1758984640414,-151.0,0.00033,7]
[388041619,1758984640423,-151.0,0.00033,7]
[388041620,1758984640432,-300.699,0.00033,7]
[388041621,1758984640442,-151.0,0.00033,7]
[388041622,1758984640451,-151.0,0.00033,7]
[388041624,1758984640461,-164.65872,0.00033,7]
[388041625,1758984640470,-172.147368,0.00033,7]
[388041626,1758984640479,-172.147368,0.00033,7]
[388041627,1758984640488,-83.24050844,0.00033,7]
[388041631,1758984640551,-23.75189033,0.00033,7]
[388041633,1758984641095,-65.15496923,0.00033,7]
[388041634,1758984641107,-172.147368,0.00033,7]
[388041635,1758984641116,-89.6567739,0.00033,7]
[388041636,1758984641127,-82.4905941,0.00033,7]
[388041637,1758984641136,-172.147368,0.00033,7]
[388041638,1758984641146,-172.147368,0.00033,7]
[388041639,1758984641155,-172.147368,0.00033,7]
[388041640,1758984641164,-172.147368,0.00033,7]
[388041641,1758984641173,-230.149174,0.00033,7]
[388041642,1758984641182,-230.149174,0.00033,7]
[388041643,1758984641191,-172.147368,0.00033,7]
[388041644,1758984641201,-230.149174,0.00033,7]
[388041645,1758984641210,-172.147368,0.00033,7]
[388041646,1758984641219,-172.147368,0.00033,7]
[388041647,1758984641228,-230.149174,0.00033,7]
[388041648,1758984641238,-230.149174,0.00033,7]
[388041649,1758984641247,-132.07845364,0.00033,7]
[388041661,1758984643984,-98.07072036,0.00033,7]
[388041662,1758984643994,-230.149174,0.00033,7]
[388041663,1758984644003,-230.149174,0.00033,7]
[388041664,1758984644013,-230.149174,0.00033,7]
[388041665,1758984644026,-151.0,0.00033,7]
[388041666,1758984644036,-151.0,0.00033,7]
[388041667,1758984644045,-151.0,0.00033,7]
[388041668,1758984644054,-151.0,0.00033,7]
[388041669,1758984644064,-151.0,0.00033,7]
[388041670,1758984644074,-298.269547,0.00033,7]
[388041671,1758984644083,-186.468728,0.00033,7]
[388041672,1758984644092,-186.468728,0.00033,7]
[388041673,1758984644104,-186.468728,0.00033,7]
[388041674,1758984644114,-186.468728,0.00033,7]
[388041675,1758984644123,-186.468728,0.00033,7]
[388041676,1758984644132,-186.468728,0.00033,7]
[388041677,1758984644142,-186.468728,0.00033,7]
[388041679,1758984644152,-186.468728,0.00033,7]
[388041680,1758984644161,-186.468728,0.00033,7]
[388041681,1758984644171,-151.0,0.00033,7]
[388041682,1758984644180,-151.0,0.00033,7]
[388041683,1758984644190,-186.468728,0.00033,7]
[388041684,1758984644199,-186.468728,0.00033,7]
[388041685,1758984644209,-186.468728,0.00033,7]
[388041686,1758984644219,-151.0,0.00033,7]
[388041687,1758984644229,-151.0,0.00033,7]
[388041688,1758984644239,-151.0,0.00033,7]
[388041689,1758984644249,-262.27772486,0.00033,7]
[388041690,1758984644258,-151.0,0.00033,7]
[388041691,1758984644268,-151.0,0.00033,7]
[388041692,1758984644277,-151.0,0.00033,7]
[388041693,1758984644287,-181.77933,0.00033,7]
[388041694,1758984644296,-181.77933,0.00033,7]
[388041695,1758984644307,-181.77933,0.00033,7]
[388041696,1758984644317,-181.77933,0.00033,7]
[388041697,1758984644326,-181.77933,0.00033,7]
[388041698,1758984644336,-181.77933,0.00033,7]
[388041699,1758984644345,-181.77933,0.00033,7]
[388041700,1758984644355,-181.77933,0.00033,7]
[388041701,1758984644364,-181.77933,0.00033,7]
[388041702,1758984644373,-181.77933,0.00033,7]
[388041703,1758984644383,-181.77933,0.00033,7]
[388041704,1758984644393,-181.77933,0.00033,7]
[388041705,1758984644403,-304.583265,0.00033,7]
[388041706,1758984644412,-304.583265,0.00033,7]
[388041707,1758984644421,-304.583265,0.00033,7]
[388041708,1758984644431,-304.583265,0.00033,7]
[388041709,1758984644441,-304.583265,0.00033,7]
[388041710,1758984644451,-304.583265,0.00033,7]
[388041711,1758984644461,-304.583265,0.00033,7]
[388041712,1758984644470,-304.583265,0.00033,7]
[388041713,1758984644480,-304.583265,0.00033,7]
[388041714,1758984644489,-304.583265,0.00033,7]
[388041715,1758984644499,-304.583265,0.00033,7]
[388041716,1758984644508,-304.583265,0.00033,7]
[388041717,1758984644517,-151.0,0.00033,7]
[388041718,1758984644527,-151.0,0.00033,7]
[388041719,1758984644536,-151.0,0.00033,7]
[388041720,1758984644546,-151.0,0.00033,7]
[388041721,1758984644556,-259.857885,0.00033,7]
[388041722,1758984644565,-174.952236,0.00033,7]
[388041723,1758984644579,-151.0,0.00033,7]
[388041724,1758984644589,-151.0,0.00033,7]
[388041725,1758984644599,-151.0,0.00033,7]
[388041726,1758984644608,-571.351782,0.00033,7]
[388041727,1758984644618,-571.351782,0.00033,7]
[388041728,1758984644628,-571.351782,0.00033,7]
[388041729,1758984644638,-571.351782,0.00033,7]
[388041730,1758984644648,-571.351782,0.00033,7]
[388041731,1758984644658,-571.351782,0.00033,7]
[388041732,1758984644669,-571.351782,0.00033,7]
[388041733,1758984644678,-571.351782,0.00033,7]
[388041734,1758984644688,-571.351782,0.00033,7]
[388041735,1758984644698,-571.351782,0.00033,7]
[388041736,1758984644708,-571.351782,0.00033,7]
[388041737,1758984644718,-571.351782,0.00033,7]
[388041738,1758984644728,-151.0,0.00033,7]
[388041739,1758984644738,-151.0,0.00033,7]
[388041740,1758984644748,-151.0,0.00033,7]
[388041741,1758984644758,-151.0,0.00033,7]
[388041742,1758984644768,-151.0,0.00033,7]
[388041743,1758984644777,-151.0,0.00033,7]
[388041744,1758984644787,-151.0,0.00033,7]
[388041745,1758984644797,-151.0,0.00033,7]
[388041746,1758984644806,-1215.184263,0.00033,7]
[388041747,1758984644816,-1215.184263,0.00033,7]
[388041748,1758984644825,-1215.184263,0.00033,7]
[388041749,1758984644835,-151.0,0.00033,7]
[388041750,1758984644844,-151.0,0.00033,7]
[388041751,1758984644854,-1215.184263,0.00033,7]
[388041752,1758984644864,-151.0,0.00033,7]
[388041753,1758984644874,-1215.184263,0.00033,7]
[388041754,1758984644883,-151.0,0.00033,7]
[388041755,1758984644894,-1215.184263,0.00033,7]
[388041756,1758984644904,-151.0,0.00033,7]
[388041757,1758984644913,-151.0,0.00033,7]
[388041758,1758984644923,-1215.184263,0.00033,7]
[388041759,1758984644933,-1215.184263,0.00033,7]
[388041760,1758984644943,-242.058124,0.00033,7]
[388041761,1758984644952,-1215.184263,0.00033,7]
[388041762,1758984644962,-1215.184263,0.00033,7]
[388041763,1758984644972,-1215.184263,0.00033,7]
[388041764,1758984644995,-1215.184263,0.00033,7]
[388041765,1758984645004,-151.0,0.00033,7]
[388041766,1758984645014,-151.0,0.00033,7]
[388041767,1758984645027,-151.0,0.00033,7]
[388041768,1758984645042,-49.46605285,0.00033,7]
[388041809,1758985553091,-206.8266531,0.00026779,2]
[388041810,1758985560279,269.7412961,0.00025205,2]
[388041811,1758985579547,-166.92491265,0.00026744,5]
[388041812,1758985579574,-481.6230198,0.00026779,2]
[388041813,1758985579596,-300.0,0.00026787,2]
[388041814,1758985579620,-300.0,0.00026788,2]
[388041815,1758985579641,-300.0,0.00026788,2]
[388041816,1758985579663,-300.0,0.00026788,2]
[388041817,1758985579685,-300.0,0.00026788,2]
[388041818,1758985579709,-1200.0,0.00026788,2]
[388041819,1758985579733,-16879.50458816,0.00026789,2]
[388041820,1758985579755,-377.92604326,0.00026789,2]
[388041821,1758985579777,-258.59926605,0.00026789,2]
[388041822,1758985579800,-500.0,0.00026789,2]
[388041823,1758985579821,-500.0,0.00026789,2]
[388041824,1758985579843,-469.31426131,0.00026789,2]
[388041825,1758985579864,-500.0,0.00026789,2]
[388041826,1758985579891,-265.19899909,0.00026789,2]
[388041827,1758985579911,-500.0,0.00026789,2]
[388041828,1758985579932,-500.0,0.00026789,2]
[388041829,1758985579952,-500.0,0.00026789,2]
[388041830,1758985579973,-270.13646515,0.00026789,2]
[388041831,1758985579995,-428.62820262,0.00026789,2]
[388041832,1758985580016,-219.2905557,0.00026789,2]
[388041833,1758985580040,-500.0,0.00026789,2]
[388041834,1758985580062,-287.555425,0.00026789,2]
[388041835,1758985580083,-500.0,0.00026789,2]
[388041836,1758985580103,-500.0,0.00026789,2]
[388041837,1758985580125,-561.27294469,0.00026789,2]
[388041838,1758985580147,-523.45496549,0.00026789,2]
[388041839,1758985580167,-209.65,0.00026789,2]
[388041840,1758985580191,-500.0,0.00026789,2]
[388041841,1758985580215,-500.0,0.00026789,2]
[388041842,1758985580239,-500.0,0.00026789,2]
[388041843,1758985580260,-500.0,0.00026789,2]
[388041844,1758985580282,-500.0,0.00026789,2]
[388041845,1758985580303,-388.69288605,0.00026789,2]
[388041846,1758985580327,-15.22746498,0.00026789,2]
[388041847,1758985629240,9570.2687039,0.00025,2]
[388041848,1758985629264,10000.01,0.00025,2]
[388041849,1758985629288,10000.01,0.00025,2]
[388041850,1758985629897,156.98656761,0.00019178,2]
[388041851,1758985629923,379.82439869,0.00019178,2]
[388041852,1758985629948,455.69032331,0.00019178,2]
[388041853,1758985629973,8.59537385,0.00019178,2]
[388041854,1758985635122,-426.55731841,0.00023432,2]
[388041855,1758985654052,150.0,0.00022872,2]
[388041856,1758985694401,9850.01,0.00023,2]
[388041857,1758985694423,10000.01,0.00023,2]
[388041858,1758985694446,150.6912961,0.00023,2]
[388041859,1758985730490,5000.0,0.00023432,2]
[388041860,1758985739595,4849.3187039,0.00023432,2]
[388041861,1758985739621,150.6812961,0.00023432,2]
[388041863,1758985747511,704.12491267,0.00023332,2]
[388041864,1758985753150,-4573.44268159,0.00023432,2]
[388041865,1758985753183,-1200.0,0.00024999,2]
[388041866,1758985753218,-309.3711737,0.00025096,30]
[388041867,1758985753251,-928.943629,0.00025288,2]
[388041868,1758985753280,-500.0,0.000253,2]
[388041869,1758985753312,-241.58227828,0.0002537,16]
[388041870,1758985755706,5000.0,0.00024953,2]
[388041871,1758985756468,-961.47439239,0.00026396,2]
[388041872,1758985763602,2621.82256308,0.00024953,2]
[388041873,1758985763624,1822.78593369,0.00024953,2]
[388041874,1758985763649,555.39150323,0.00024953,2]
[388041875,1758985771881,3871.05264081,0.00024953,2]
[388041876,1758985779908,5000.0,0.00024953,2]
[388041877,1758985788043,33.67313102,0.00024953,2]
[388041878,1758985788065,4015.3901687,0.00024953,2]
[388041879,1758985803809,5000.0,0.00024953,2]
[388041880,1758985828022,5000.0,0.00024953,2]
[388041909,1758985832634,-150.0,0.00025389,2]
[388041911,1758985832644,-1250.26382394,0.0002565,2]
[388041913,1758985832656,-614.01773707,0.0002565,2]
[388041921,1758985832719,-2408.94488059,0.0002565,2]
[388041923,1758985832728,-300.0,0.00026269,2]
[388041924,1758985832738,-38.52560761,0.00026396,2]
[388041926,1758985832748,-300.0,0.00026573,2]
[388041928,1758985832758,-300.0,0.00026573,2]
[388041930,1758985832768,-300.0,0.00026573,2]
[388041932,1758985832778,-1200.0,0.00026573,2]
[388041933,1758985832788,-300.0,0.00026573,2]
[388041935,1758985832798,-300.0,0.00026573,2]
[388041937,1758985832807,-500.0,0.00026574,2]
[388041939,1758985832817,-307.79294057,0.00026574,2]
[388041940,1758985832826,-500.0,0.00026574,2]
[388041942,1758985832836,-500.0,0.00026574,2]
[388041944,1758985832846,-315.71787694,0.00026574,2]
[388041946,1758985832856,-500.0,0.00026574,2]
[388041948,1758985832866,-500.0,0.00026574,2]
[388041950,1758985832875,-500.0,0.00026574,2]
[388041952,1758985832885,-500.0,0.00026574,2]
[388041954,1758985832895,-500.0,0.00026574,2]
[388041956,1758985832903,-500.0,0.00026574,2]
[388041958,1758985832912,-500.0,0.00026574,2]
[388041960,1758985832922,-500.0,0.00026574,2]
[388041961,1758985832931,-500.0,0.00026574,2]
[388041963,1758985832941,-500.0,0.00026574,2]
[388041965,1758985832950,-261.29159715,0.00026574,2]
[388041967,1758985832960,-447.38926568,0.00026574,2]
[388041969,1758985832969,-500.0,0.00026574,2]
[388041971,1758985832978,-500.0,0.00026574,2]
[388041973,1758985832987,-500.0,0.00026574,2]
[388041975,1758985832997,-500.0,0.00026574,2]
[388041977,1758985833006,-500.0,0.00026574,2]
[388041979,1758985833015,-500.0,0.00026574,2]
[388041981,1758985833024,-500.0,0.00026574,2]
[388041982,1758985833034,-500.0,0.00026574,2]
[388041985,1758985833044,-500.0,0.00026574,2]
[388041986,1758985833055,-500.0,0.00026574,2]
[388041988,1758985833065,-500.0,0.00026574,2]
[388041990,1758985833074,-500.0,0.00026574,2]
[388041992,1758985833083,-500.0,0.00026574,2]
[388041994,1758985833092,-500.0,0.00026574,2]
[388041996,1758985833102,-500.0,0.00026574,2]
[388041998,1758985833116,-500.0,0.00026574,2]
[388042000,1758985833125,-500.0,0.00026574,2]
[388042002,1758985833136,-500.0,0.00026574,2]
[388042004,1758985833145,-500.0,0.00026574,2]
[388042006,1758985833154,-500.0,0.00026574,2]
[388042008,1758985833163,-500.0,0.00026574,2]
[388042010,1758985833172,-500.0,0.00026574,2]
[388042012,1758985833182,-500.0,0.00026574,2]
[388042014,1758985833191,-500.0,0.00026574,2]
[388042016,1758985833200,-500.0,0.00026574,2]
[388042018,1758985833209,-360.349873,0.00026574,2]
[388042020,1758985833219,-500.0,0.00026574,2]
[388042022,1758985833228,-500.0,0.00026574,2]
[388042023,1758985833238,-501.37962426,0.000266,2]
[388042025,1758985833248,-500.0,0.000266,2]
[388042027,1758985833258,-500.0,0.000266,2]
[388042029,1758985833268,-500.0,0.000266,2]
[388042031,1758985833279,-500.0,0.000266,2]
[388042033,1758985833288,-995.83147418,0.00026679,2]
[388042035,1758985833298,-543.06606048,0.00026787,2]
[388042037,1758985833307,-500.0,0.00026787,2]
[388042039,1758985833318,-412.10634066,0.00026787,2]
[388042041,1758985833327,-50000.0,0.00026788,2]
[388042043,1758985833336,-1280.4123608,0.00026827,2]
[388042045,1758985833345,-500.0,0.00026848,2]
[388042047,1758985833355,-1680.0,0.00027082,2]
[388042071,1758985833575,-500.0,0.00027122,2]
[388042073,1758985833591,-261.02623225,0.00027148,2]
[388042075,1758985833600,-1000.0,0.00027148,2]
[388042077,1758985833610,-635.4633957,0.00027148,2]
[388042079,1758985833620,-500.0,0.00027148,2]
[388042081,1758985833630,-178.33498777,0.00027155,15]
[388042083,1758985833640,-228.48,0.00027155,15]
[388042085,1758985833650,-1500.0,0.00027492,5]
[388042087,1758985833662,-296.33432936,0.00027696,5]
[388042089,1758985833673,-5000.0,0.00027765,2]
[388042091,1758985833683,-2000.01,0.00028,2]
[388042093,1758985833692,-4029.9124266,0.00028014,2]
[388042095,1758985833703,-180.0,0.0002811,27]
[388042097,1758985833712,-152.81485953,0.00028588,5]
[388042099,1758985833722,-160.0,0.000286,2]
[388042101,1758985833731,-300.0,0.00028741,2]
[388042103,1758985833740,-300.0,0.00028741,2]
[388042105,1758985833749,-420.0,0.00028741,2]
[388042107,1758985833759,-182.0,0.00028741,2]
[388042108,1758985833768,-219.0,0.00028741,2]
[388042110,1758985833777,-1000.0,0.00028866,30]
[388042113,1758985833787,-1680.0,0.00028869,2]
[388042115,1758985833797,-260.0,0.00029148,2]
[388042116,1758985833806,-2351.0,0.00029339,2]
[388042118,1758985833815,-4334.4803848,0.00029855,2]
[388042120,1758985833825,-490.36420006,0.00030253,2]
[388042122,1758985833834,-587.0,0.00031086,2]
[388042124,1758985833844,-166.37053027,0.00031158,10]
[388042126,1758985833854,-720.0,0.00031362,3]
[388042128,1758985833863,-177.0,0.00031397,46]
[388042130,1758985833874,-899.1950051,0.0003157,2]
[388042131,1758985833884,-769.0,0.00031784,3]
[388042133,1758985833893,-5000.0,0.00032099,3]
[388042134,1758985833903,-292.02407128,0.00032121,10]
[388042135,1758985833912,-200.6375255,0.00032363,2]
[388042137,1758985833921,-83227.3361819,0.00032466,2]
[388042139,1758985833930,-720.57726482,0.00032466,2]
[388042140,1758985833939,-285.87,0.00032466,3]
[388042141,1758985833949,-857.66,0.00032466,3]
[388042142,1758985833959,-5448.35613286,0.00032473,2]
[388042143,1758985833968,-500.0,0.00032476,10]
[388042145,1758985833977,-85444.44414239,0.00032476,2]
[388042146,1758985833989,-17694.06969257,0.00032476,2]
[388042147,1758985834005,-109259.99999999,0.00032476,2]
[388042148,1758985834016,-458.59857326,0.00032476,2]
[388042152,1758985838553,-469.3681661,0.00031701,2]
[388042153,1758985838563,-410.0,0.00032397,2]
[388042154,1758985838573,-7664.15723883,0.00032476,2]
[388042155,1758985838744,-1552.15,0.00032476,2]
[388042156,1758985838756,-3681.04165162,0.00032476,2]
[388042157,1758985838768,-46215.5945779,0.00032476,2]
[388042158,1758985838816,-11231.76069706,0.00032476,2]
[388042159,1758985838828,-2132.41304471,0.00032476,2]
[388042175,1758985840879,-1086.64761428,0.00032476,2]
[388042247,1758985843720,-1132.7115885,0.00032476,2]
[388042248,1758985843813,-302.0,0.00032476,2]
[388042263,1758985846747,-361.08636947,0.00032376,2]
[388042264,1758985846757,-268.25289033,0.00032476,2]
[388042265,1758985847170,-15851.61232856,0.00032476,2]
[388042266,1758985847189,-524.4924999,0.00032476,2]
[388042267,1758985851478,1431.62260346,0.00024953,2]
[388042268,1758985934261,-574.15546629,0.00024953,2]
[388042269,1758986032456,172.0,0.00024274,12]
[388042271,1758986129907,2000.0,0.00026789,120]
[388042272,1758986130549,2000.0,0.00026789,120]
[388042273,1758986130869,2000.0,0.00026789,120]
[388042274,1758986131327,2000.0,0.00026789,120]
[388042275,1758986131624,2000.0,0.00026789,120]
[388042276,1758986179510,182.454177,0.00025332,120]
[388042277,1758986326286,1975.0,0.00033127,60]
[388042279,1758986372479,501.84,0.00033127,60]
[388042280,1758986381976,160.0,0.00023433,2]
[388042281,1758986385214,-164.0,0.00024274,12]
[388042282,1758986395251,-666.0,0.00024803,2]
[388042283,1758986400321,169.46163027,0.00023433,2]
[388042284,1758986408138,186.57029197,0.00024802,2]
[388042286,1758986658514,163.0,0.00024274,12]
[388042288,1758986695740,-1000.0,0.00024844,2]
[388042289,1758986755113,-304.40330807,0.000249,2]
[388042290,1758986808079,-170.05396107,0.000249,2]
[388042291,1758986835088,-173.75725607,0.000249,2]
[388042292,1758986850035,169.74315109,0.00024801,2]
[388042293,1758986853089,-187.16595458,0.000249,2]
[388042294,1758986853312,-80.5588031,0.00024901,2]
[388042295,1758986867835,252.66510701,0.000209,2]
[388042296,1758986898606,273.10067795,0.00021,2]
[388042297,1758986906803,356.55743892,0.00022,2]
[388042298,1758986908548,6947.94362503,0.0002,2]
[388042299,1758986908571,7545.53947157,0.0002,2]
[388042300,1758986908872,2454.47052843,0.00024,2]
[388042301,1758986908899,5814.64994693,0.00024,2]
[388042302,1758986909404,412.37430855,0.00024844,2]
[388042303,1758986910594,2875.6338291,0.00017,2]
[388042304,1758986910930,270.8400594,0.00022,5]
[388042305,1758986912577,626.51185602,0.00024172,2]
[388042306,1758986912599,10000.01,0.00024172,2]
[388042307,1758986912621,10000.01,0.00024172,2]
[388042308,1758986912644,10000.01,0.00024172,2]
[388042309,1758986912667,2878.61517458,0.00024172,2]
[388042310,1758986912697,7121.39482542,0.0002,2]
[388042311,1758986912719,10000.01,0.0002,2]
[388042312,1758986912741,2878.59517458,0.0002,2]
[388042313,1758986913999,1711.11752083,0.00024,2]
[388042315,1758986916484,5410.29730459,0.00023,3]
[388042316,1758986916508,10000.01,0.00023,3]
[388042317,1758986916530,4722.20842104,0.00023,3]
[388042318,1758986916814,5277.80157896,0.0002,2]
[388042319,1758986916838,3238.33547731,0.0002,2]
[388042320,1758986917331,556.72031642,0.00022,7]
[388042321,1758986917940,6204.95420627,0.0002,2]
[388042322,1758986917965,10000.01,0.0002,2]
[388042323,1758986917987,6795.03579373,0.0002,2]
[388042324,1758986918660,163.3399967,0.00024,2]
[388042325,1758986918702,3041.63420957,0.0002,2]
[388042326,1758986918727,10000.01,0.0002,2]
[388042327,1758986918752,10000.01,0.0002,2]
[388042328,1758986918777,7881.53956977,0.0002,2]
[388042329,1758986918898,663.95392898,0.000245,2]
[388042330,1758986924969,683.02214585,0.00024844,2]
[388042331,1758986932932,771.4943554,0.00024844,2]
[388042332,1758986932956,4228.5056446,0.00024844,2]
[388042333,1758986939942,1994.2235894,0.00024163,2]
[388042334,1758986941501,3777.280766,0.00024844,2]
[388042335,1758986941524,1222.719234,0.00024844,2]
[388042336,1758986946119,-598.834691,0.00024902,2]
[388042337,1758986946140,-300.0,0.00024998,2]
[388042338,1758986946162,-500.0,0.00024999,2]
[388042339,1758986946184,-500.0,0.00024999,2]
[388042340,1758986946211,-500.0,0.00024999,2]
[388042341,1758986946232,-500.0,0.00024999,2]
[388042342,1758986946254,-406.30082075,0.00024999,2]
[388042343,1758986946274,-271.93214063,0.00024999,2]
[388042344,1758986946296,-500.0,0.00024999,2]
[388042345,1758986946317,-520.42859531,0.00024999,2]
[388042346,1758986946338,-500.0,0.00024999,2]
[388042347,1758986946361,-500.0,0.00024999,2]
[388042348,1758986946383,-500.0,0.00024999,2]
[388042349,1758986946606,-500.0,0.00024999,2]
[388042350,1758986946628,-2905.76498475,0.00025,3]
[388042351,1758986947132,-6542.42051269,0.00025,3]
[388042352,1758986949257,1414.27046146,0.00024844,2]
[388042353,1758986957635,5000.0,0.00024844,2]
[388042354,1758986965762,2363.02030454,0.00024844,2]
[388042355,1758986965787,2636.97969546,0.00024844,2]
[388042356,1758986973907,5000.0,0.00024844,2]
[388042359,1758986981940,2363.03030454,0.00024844,2]
[388042360,1758986981964,2636.96969546,0.00024844,2]
[388042361,1758986990299,5000.0,0.00024844,2]
[388042362,1758986998245,4665.7005443,0.00024844,2]
[388042372,1758987031920,-822.07063308,0.00024228,2]
[388042373,1758987031996,-19.30636179,0.00024228,2]
[388042374,1758987032016,-4158.62300513,0.00024228,2]
[388042375,1758987032029,-5000.0,0.00024473,2]
[388042376,1758987032042,-302.48582854,0.0002472,14]
[388042377,1758987032055,-205.0,0.00024998,2]
[388042378,1758987032068,-300.0,0.00024998,2]
[388042379,1758987032081,-300.0,0.00024998,2]
[388042380,1758987032093,-300.0,0.00024998,2]
[388042381,1758987032105,-1200.0,0.00024998,2]
[388042382,1758987032117,-469.91198685,0.00024999,2]
[388042383,1758987032130,-500.0,0.00024999,2]
[388042385,1758987032143,-500.0,0.00024999,2]
[388042387,1758987032155,-500.0,0.00024999,2]
[388042389,1758987032168,-500.0,0.00024999,2]
[388042392,1758987032180,-500.0,0.00024999,2]
[388042394,1758987032192,-500.0,0.00024999,2]
[388042396,1758987032204,-549.67050959,0.00024999,2]
[388042399,1758987032217,-1291.78977278,0.00025,3]
[388042401,1758987032229,-618.77258876,0.00025,2]
[388042402,1758987032241,-3803.11059776,0.00025,7]
[388042539,1758987038005,-394.4078344,0.00024472,2]
[388042540,1758987038017,-378.47786897,0.00024472,2]
[388042541,1758987038027,-168.93651059,0.00024472,2]
[388042542,1758987038040,-5000.0,0.0002475,2]
[388042543,1758987038050,-500.0,0.00024999,2]
[388042544,1758987038060,-477.96334384,0.00024999,2]
[388042545,1758987038070,-253.02884835,0.00024999,2]
[388042546,1758987038080,-808.12157385,0.00025,7]
[388042547,1758987038090,-3328.19032668,0.00025,2]
[388042548,1758987038100,-19932.70051504,0.00025,2]
[388042549,1758987038110,-4914.3670903,0.00025069,2]
[388042550,1758987038120,-464.42903259,0.000252,2]
[388042551,1758987038130,-306.002265,0.0002521,2]
[388042552,1758987038140,-50000.0,0.00025262,2]
[388042553,1758987038150,-1451.8419346,0.00025268,2]
[388042554,1758987038160,-182.454177,0.00025332,2]
[388042555,1758987038171,-188.417543,0.00025589,2]
[388042556,1758987038181,-200.0,0.00025793,15]
[388042557,1758987038191,-2333.0285673,0.000258,2]
[388042558,1758987038201,-212.0,0.00025945,18]
[388042559,1758987038210,-238.0,0.00026,2]
[388042560,1758987038220,-1328.51213,0.00026,30]
[388042561,1758987038230,-160.0,0.00026554,2]
[388042562,1758987038240,-500.0,0.000266,2]
[388042563,1758987038250,-500.0,0.000266,2]
[388042564,1758987038260,-500.0,0.000266,2]
[388042565,1758987038270,-500.0,0.000266,2]
[388042566,1758987038280,-500.0,0.000266,2]
[388042567,1758987038289,-500.0,0.000266,2]
[388042568,1758987038299,-207.66,0.000266,2]
[388042569,1758987038309,-420.0,0.00027081,2]
[388042570,1758987038319,-420.0,0.00027081,2]
[388042571,1758987038329,-420.0,0.00027081,2]
[388042572,1758987038339,-1000.0,0.00027148,2]
[388042573,1758987038349,-1057.45315853,0.00027148,2]
[388042574,1758987038358,-1000.0,0.00027148,2]
[388042575,1758987038367,-1000.0,0.00027148,2]
[388042576,1758987038377,-1000.0,0.00027148,2]
[388042577,1758987038387,-1000.0,0.00027148,2]